Cogmind - Beta 14 @@@ ROGUE MODE // 2024.09.07 @ 14:40:49 Player: Fleshy Vegetable Bird Result: Self-destructed Performance ------------- Evolutions (6) 3000 Regions Visited (15) 3000 Robots Destroyed (106) 530 Value Destroyed (4752) 4752 Prototype IDs (29) 580 Alien Tech Used (0) 0 Bonus (3816) 3816 TOTAL SCORE: 15678 Bonus ------- High Alert Combat Kills 391 Follower Combat Kills 428 Entered Garrisons 400 Used RIF Installer 1500 Entered DSFs 1000 Aligned with FarCom 300 Friendly Fire -203 Cogmind --------- Core Integrity 1137/1150 Matter 198/300 Energy 100/100 System Corruption 0% Temperature Cool (0) Movement Core (50) Location -4/Factory Parts ------- > --- POWER (1) -------- (None) > --- PROPULSION (4) --- (None) > --- UTILITY (10) ----- Core Analyzer Hacking Suite Hacking Suite Improved System Shield Improved System Shield Improved System Shield Improved System Shield Relay Coupler [Swarmer] (44) Relay Coupler [Cutter] (28) > --- WEAPON (4) ------- (None) > --- INVENTORY (5) ---- Hacking Suite YOLO Cannon Hypervelocity Coil Gun Peak State ------------ > --- POWER ------------ Micro Nuclear Core > --- PROPULSION ------- Gravmag System Antigrav Array > --- UTILITY ---------- Advanced Signal Interpreter Improved Melee Analysis Suite Advanced Melee Analysis Suite Core Analyzer Improved Phase Shifter Improved Hacking Suite Improved Hacking Suite Improved System Shield > --- WEAPON ----------- Coil Gun Spear > --- INVENTORY -------- Heavy Laser YOLO Cannon Gauss Rifle Remote Datajack [Rating: 76] Favorites ----------- Power Light Nuclear Core Engine Light Ion Engine Power Core Light Nuclear Core Propulsion Wheel Treads Light Treads Leg Carbon-fiber Leg Wheel Wheel Hover Unit Gravmag Array Utility Large Storage Unit Device Improved Terrain Scanner Storage Large Storage Unit Processor Improved Melee Analysis Suite Hackware Improved System Shield Protection Improved Core Shielding Weapon Autogun Energy Gun Small Laser Ballistic Gun Autogun Ballistic Cannon Antimatter Cannon Launcher Rocket Launcher Special Weapon Remote Datajack Impact Weapon Power Maul Piercing Weapon Spear Build | -11 -10 -10 -10 -9 -8 -8 -7 -7 -6 -6 -6 -6 -5 -5 -4 ------- Run | Yrd Mat Min Exi Min Mat Gar Fac DSF Fac Was Fac Gar Fac DSF Fac Slots Evolved 12 | . . . . . 4 . 2 . 2 . . . 2 . 2 Power . | . . . . . . . . . . . . . . . . Propulsion 2 | . . . . . 1 . . . . . . . 1 . . Utility 8 | . . . . . 2 . 2 . 2 . . . 1 . 1 Weapon 2 | . . . . . 1 . . . . . . . . . 1 Parts Attached 156 | 7 1 1 2 5 31 31 3 9 2 . 31 21 . 10 2 Power 12 | 1 . . . 1 1 3 . . . . 3 2 . 1 . Engine 5 | 1 . . . 1 . . . . . . 2 . . 1 . Core 7 | . . . . . 1 3 . . . . 1 2 . . . Reactor . | . . . . . . . . . . . . . . . . Propulsion 33 | 2 . . . 2 6 8 . 2 . . 7 6 . . . Treads 6 | . . . . . . 6 . . . . . . . . . Leg 11 | . . . . . . 2 . 1 . . 4 4 . . . Wheel 12 | 2 . . . 2 6 . . 1 . . 1 . . . . Hover 4 | . . . . . . . . . . . 2 2 . . . Flight . | . . . . . . . . . . . . . . . . Utility 50 | 2 . . 1 1 5 7 3 3 1 . 11 7 . 7 2 Device 6 | 1 . . . 1 1 . . . . . 2 1 . . . Storage 5 | 1 . . 1 . 1 1 . . . . . . . . 1 Processor 10 | . . . . . 2 3 . . . . 5 . . . . Hackware 23 | . . . . . . . 2 2 1 . 4 6 . 7 1 Protection 6 | . . . . . 1 3 1 1 . . . . . . . Artifact . | . . . . . . . . . . . . . . . . Weapon 61 | 2 1 1 1 1 19 13 . 4 1 . 10 6 . 2 . Energy Gun 1 | 1 . . . . . . . . . . . . . . . Energy Cannon . | . . . . . . . . . . . . . . . . Ballistic Gun 30 | 1 1 . 1 1 16 4 . 1 . . . 4 . 1 . Ballistic Cannon 8 | . . . . . . 1 . 2 . . 5 . . . . Launcher 6 | . . 1 . . 1 2 . . . . 1 . . 1 . Special Weapon 3 | . . . . . . . . . 1 . . 2 . . . Impact Weapon 6 | . . . . . 2 4 . . . . . . . . . Slashing Weapon . | . . . . . . . . . . . . . . . . Piercing Weapon 7 | . . . . . . 2 . 1 . . 4 . . . . Special Melee Weapon . | . . . . . . . . . . . . . . . . Unidentified Prototypes 4 | . . . . . 2 . . . . . 2 . . . . Corrupted Parts 2 | . . . . . . . . . . . 1 1 . . . System Corruption 12 | . . . . . . . . . . . 8 4 . . . Parts Lost 61 | . . . . 5 2 15 . 9 1 1 3 14 . 11 . Power 9 | . . . . 1 1 3 . 1 . . 1 1 . 1 . Propulsion 21 | . . . . 2 1 7 . 4 . . 1 3 . 3 . Utility 22 | . . . . 1 . 5 . 4 1 . 1 5 . 5 . Weapon 9 | . . . . 1 . . . . . 1 . 5 . 2 . Highest Loss Streak 11 | . . . . 4 1 5 . 5 1 1 2 4 . 11 . To Critical Strikes 1 | . . . . . . 1 . . . . . . . . . Average Slot Usage (%) 86 | . 100 100 100 95 95 91 98 84 24 10 68 81 82 55 47 Engine 3 | . 14 14 14 12 2 . . . . . 1 1 . . . Core 4 | . . . . . 6 7 7 . . . 1 4 5 1 . Treads 4 | . . . . . . 13 15 10 . . . . . . . Leg 3 | . . . . . . 5 7 6 . . 7 6 17 6 . Wheel 11 | . 28 28 28 25 26 3 . 2 . . 1 . . . . Hover 1 | . . . . . . . . . . . 4 6 . . . Device 4 | . 14 14 14 13 8 . . . . . 3 . . . . Storage 7 | . 14 14 14 14 9 9 7 6 . . . . . . . Processor 12 | . . . . . 9 16 15 12 . . 16 24 11 10 5 Hackware 7 | . . . . . . . 15 14 13 8 14 23 35 31 42 Protection 3 | . . . . . 5 8 5 8 4 . . . . . . Ballistic Gun 12 | . 20 14 14 27 21 15 7 8 . . . 4 11 3 . Ballistic Cannon 1 | . . . . . . 1 . 5 . . 11 . . . . Launcher 2 | . . 13 14 . . . . . . . . 1 . . . Impact Weapon 3 | . . . . . 5 8 . . . . . . . . . Piercing Weapon 2 | . . . . . . 1 15 5 . . 4 5 . . . Peak Build Rating 76 | 9 10 11 15 15 34 47 52 53 20 15 70 76 51 56 44 Average Rating 36 | 5 9 10 13 13 28 39 50 46 18 10 54 61 51 39 38 On Entrance 27 | . 9 10 11 15 14 34 46 52 14 15 8 70 51 51 41 Naked Turns . | . . . . . . . . . . . . . . . . Heaviest Build 47 | 11 11 14 31 30 46 47 37 47 6 4 26 21 12 13 . Greatest Support 60 | 20 20 20 20 20 34 60 40 40 3 3 40 45 45 45 3 Greatest Overweight (x) 11 | . . . 1 8 2 11 . 4 1 1 2 2 . 3 . Average Overweight (x) . | . . . . 1 . 1 . . 1 . . . . . . Largest Inventory Capacity 15 | 8 8 8 15 15 15 15 15 15 5 5 5 5 5 5 5 Average Capacity 11 | 7 8 8 11 15 15 15 15 13 5 5 5 5 5 5 5 Most Carried 15 | 6 8 8 10 10 15 15 15 15 4 4 5 5 5 5 5 Average Carried 9 | 2 5 8 8 7 14 13 13 13 3 4 4 4 5 4 4 Final Capacity 15 | 8 8 8 15 15 15 15 15 5 5 5 5 5 5 5 5 Final Carried 15 | 3 8 8 10 9 15 14 14 5 4 4 5 5 5 5 4 Class Distribution -------------------- 25% | Scavenger-Skirmisher 16% | Mutant 10% | Hacker-Mutant 7% | Scavenger-Assassin 6% | Scavenger-Gladiator 5% | Skirmisher 5% | Hacker-Gladiator 5% | Hacker-Skirmisher 4% | Gladiator 4% | Wizard-Mutant 3% | Bothacker-Skirmisher Dominant Class ---------------- Mutant | -10/Materials Mutant | -10/Mines Mutant | -10/Exiles Scavenger-Skirmisher | -9/Mines Scavenger-Skirmisher | -8/Materials Scavenger-Skirmisher | -8/Garrison Scavenger-Gladiator | -7/Factory Bothacker-Mutant | -7/DSF Mutant | -6/Factory Mutant | -6/Waste Hacker-Skirmisher | -6/Factory Hacker-Mutant | -6/Garrison Hacker-Mutant | -5/Factory Hacker-Mutant | -5/DSF Wizard-Mutant | -4/Factory Resources | -11 -10 -10 -10 -9 -8 -8 -7 -7 -6 -6 -6 -6 -5 -5 -4 ----------- Run | Yrd Mat Min Exi Min Mat Gar Fac DSF Fac Was Fac Gar Fac DSF Fac Matter Collected 3400 | 272 . 48 . 193 969 768 20 221 . . 383 463 . 63 . Remotely . | . . . . . . . . . . . . . . . . Salvage Created 3915 | 104 . 57 . 128 1174 1064 185 230 . . 508 465 . . . Parts 205 | 11 . 8 . 13 61 48 6 9 . . 28 21 . . . Haulers Intercepted 5 | . . . . . 4 . . . . . 1 . . . . Recyclers Shooed 4 | . . . . 2 1 . . . . . 1 . . . . Parts Field Recycled . | . . . . . . . . . . . . . . . . Retrieved Matter . | . . . . . . . . . . . . . . . . Parts Self-Destructed . | . . . . . . . . . . . . . . . . Prevented . | . . . . . . . . . . . . . . . . Kills | -11 -10 -10 -10 -9 -8 -8 -7 -7 -6 -6 -6 -6 -5 -5 -4 ------- Run | Yrd Mat Min Exi Min Mat Gar Fac DSF Fac Was Fac Gar Fac DSF Fac Combat Hostiles Destroyed 76 | . . 4 . 7 12 30 . 8 . . 7 8 . . . Melee 15 | . . . . . . 6 . 1 . . 4 4 . . . Guns 28 | . . . . 5 12 6 . 3 . . . 2 . . . Cannons 10 | . . . . . . 3 . 4 . . 3 . . . . AOE 13 | . . 4 . 2 . 5 . . . . . 2 . . . Classes Destroyed 19 | 2 . 3 . 1 7 2 . 3 . . 1 . . . . Worker 5 | . . 1 . . 2 . 1 . . . 1 . . . . Builder 1 | . . . . 1 . . . . . . . . . . . Tunneler 7 | 3 . . . 1 3 . . . . . . . . . . Hauler 5 | . . . . . 4 . . . . . 1 . . . . Recycler 7 | 1 . . . . 3 . 2 . . . 1 . . . . Mechanic 1 | . . . . . 1 . . . . . . . . . . Operator 1 | . . . . . 1 . . . . . . . . . . Watcher 8 | . . . . . 4 1 . . . . 2 1 . . . Swarmer 23 | . . 3 . 7 . 7 . . . . 4 2 . . . Grunt 22 | . . 1 . . 5 9 . . . . 2 5 . . . Brawler 1 | . . . . . . 1 . . . . . . . . . Duelist 2 | . . . . . 1 1 . . . . . . . . . Sentry 13 | . . . . . 5 8 . . . . . . . . . Specialist 1 | . . . . . . . . 1 . . . . . . . Hunter 3 | . . . . . 1 2 . . . . . . . . . Programmer 3 | . . . . . . . . . . . 1 2 . . . Heavy 1 | . . . . . . . . 1 . . . . . . . Behemoth 2 | . . . . . . 2 . . . . . . . . . Assembled 6 | . . . . . . . . 6 . . . . . . . Best Kill Streak 9 | 4 . 4 . 9 7 4 3 5 . . 3 2 . . . Combat Bots Only 7 | . . 3 . 7 3 4 . 5 . . 3 2 . . . Max Kills in Single Turn 4 | 1 . 4 . 1 3 1 1 2 . . 1 1 . . . Gunslinging . | . . . . . . . . . . . . . . . . Exploded 3 | . . 3 . 1 . 1 . . . . . 1 . . . Melee 1 | . . . . . . 1 . 1 . . 1 1 . . . Uniques/NPCs Destroyed . | . . . . . . . . . . . . . . . . Combat | -11 -10 -10 -10 -9 -8 -8 -7 -7 -6 -6 -6 -6 -5 -5 -4 -------- Run | Yrd Mat Min Exi Min Mat Gar Fac DSF Fac Was Fac Gar Fac DSF Fac Hostile Shots Fired 750 | . 5 7 . 62 58 276 . 70 17 1 43 129 . 81 1 Missed 209 | . 4 1 . 22 14 69 . 19 7 . 9 38 . 26 . Damage Taken 9205 | . 9 110 . 362 731 3410 . 989 132 35 672 1744 . 998 13 Core 1945 | . . 8 . 46 67 440 . 157 101 35 92 490 . 496 13 Absorbed by Shields . | . . . . . . . . . . . . . . . . Redirected to Shielding 137 | . . . . . . 68 . 60 9 . . . . . . Ignored by Resistances 148 | . . . . . . 148 . . . . . . . . . Regen/Repaired (Parts) 221 | . . . . . 153 . 68 . . . . . . . . Core Remaining (%) 54 | 100 . . . 78 . 7 . 77 . . . 15 . 50 . Volleys Fired 198 | 8 . 2 . 17 61 54 . 12 . . 7 36 . 1 . Largest 3 | 2 . 1 . 2 3 3 . 3 . . 3 2 . 2 . Hottest 120 | 60 . 33 . 46 86 115 . 115 . . 120 58 . 51 . Shots Fired 411 | 16 . 2 . 30 168 98 . 30 . . 20 45 . 2 . Gun 332 | 16 . . . 26 167 81 . 18 . . . 22 . 2 . Cannon 39 | . . . . . . 7 . 12 . . 20 . . . . Launcher 27 | . . 2 . 4 1 10 . . . . . 10 . . . Special 13 | . . . . . . . . . . . . 13 . . . Kinetic 363 | 8 . . . 26 167 88 . 30 . . 20 22 . 2 . Thermal 8 | 8 . . . . . . . . . . . . . . . Explosive 17 | . . 2 . 4 1 10 . . . . . . . . . Electromagnetic 10 | . . . . . . . . . . . . 10 . . . Robot Hit Streak 18 | 5 . 7 . 6 18 10 . 4 . . 5 6 . 4 . Robot Miss Streak 10 | 4 . . . 5 10 4 . 5 . . 1 4 . . . Penetration Max 1 | . . . . . 1 . . . . . . . . . . Secondary Targets 4 | . . . . 2 2 . . . . . . . . . . Max Gunslinging Chain 1 | . . . . 1 1 . . . . . . . . . . Shots Hit Robots 328 | 8 . 2 . 13 114 111 3 15 . . 23 37 . 2 . Core Hits 152 | 6 . 7 . 10 48 35 2 10 . . 15 19 . . . Critical Kills 3 | . . . . . 2 1 . . . . . . . . . Critical Parts Destroyed 14 | . . . . . 4 10 . . . . . . . . . Critical Strikes 24 | . . . . . 6 14 1 1 . . 2 . . . . Blast 1 | . . . . . . . . 1 . . . . . . . Smash 19 | . . . . . 6 13 . . . . . . . . . Impale 4 | . . . . . . 1 1 . . . 2 . . . . Melee Attacks 171 | . . . . . 20 98 3 3 . . 15 32 . . . Impact 99 | . . . . . 20 79 . . . . . . . . . Slashing . | . . . . . . . . . . . . . . . . Piercing 72 | . . . . . . 19 3 3 . . 15 32 . . . Sneak Attacks 13 | . . . . . 8 . 3 . . . 2 . . . . Combat Hostiles . | . . . . . . . . . . . . . . . . Follow-up Attacks 25 | . . . . . . 19 . 1 . . 4 1 . . . Damage Inflicted 10354 | 91 . 305 . 291 2535 4222 218 511 . . 1071 1077 . 33 . Guns 3036 | 91 . . . 205 1637 716 . 163 . . . 191 . 33 . Cannons 821 | . . . . . . 129 . 277 . . 415 . . . . Explosions 1453 | . . 305 . 86 100 664 . . . . . 298 . . . Melee 4976 | . . . . . 781 2713 218 71 . . 605 588 . . . Ramming 68 | . . . . . 17 . . . . . 51 . . . . Kinetic 3800 | 34 . . . 205 1637 845 . 440 . . 415 191 . 33 . Thermal 57 | 57 . . . . . . . . . . . . . . . Explosive 1155 | . . 305 . 86 100 664 . . . . . . . . . Electromagnetic 298 | . . . . . . . . . . . . 298 . . . Impact 3292 | . . . . . 781 2511 . . . . . . . . . Slashing . | . . . . . . . . . . . . . . . . Piercing 1684 | . . . . . . 202 218 71 . . 605 588 . . . Highest Corruption 33 | . . . . . . . . 15 . 9 19 33 . . . Average Corruption 19 | . . . . . . . . 9 . 9 12 25 . . . Corruption Purged . | . . . . . . . . . . . . . . . . Corruption Blocked . | . . . . . . . . . . . . . . . . Effects 96 | . . . . . . . . 5 . 2 34 55 . . . Message Errors 25 | . . . . . . . . 1 . 1 11 12 . . . Matter Fused 25 | . . . . . . . . 1 . 1 9 14 . . . Heat Flow Errors 9 | . . . . . . . . . . . 5 4 . . . Energy Discharges 9 | . . . . . . . . . . . 4 5 . . . Parts Rejected 1 | . . . . . . . . . . . . 1 . . . Data Loss (minor) 11 | . . . . . . . . . . . 2 9 . . . Data Loss (major) 5 | . . . . . . . . . . . 1 4 . . . Misfires 4 | . . . . . . . . 1 . . . 3 . . . Alerts 1 | . . . . . . . . . . . . 1 . . . Misdirections 2 | . . . . . . . . . . . 1 1 . . . Weapon Failures 4 | . . . . . . . . 2 . . 1 1 . . . Overload Shots . | . . . . . . . . . . . . . . . . Overflow Damage 1227 | . . 21 . . 456 523 94 . . . 86 47 . . . Projectiles 62 | . . . . . 3 11 . . . . 48 . . . . Explosions 45 | . . 21 . . . 13 . . . . . 11 . . . Melee 1120 | . . . . . 453 499 94 . . . 38 36 . . . Knockbacks 9 | . . . . . 2 2 . 1 . . 4 . . . . Impact 4 | . . . . . 1 2 . . . . 1 . . . . Kinetic 4 | . . . . . . . . 1 . . 3 . . . . Secondary 1 | . . . . . 1 . . . . . . . . . . Self-Inflicted Damage 323 | . . 18 . . 8 153 . . . . 101 43 . . . Shots 9 | . . 1 . . . 4 . . . . 1 3 . . . Rammed 12 | . . . . . 1 . . . . . 11 . . . . Targets Rammed 15 | . . . . . 1 . . . . . 14 . . . . Kicked 3 | . . . . . . . . . . . 3 . . . . Crushed . | . . . . . . . . . . . . . . . . Highest Temperature 238 | 40 . 5 . 12 163 84 . 26 . . 238 164 . . . Average Temperature 40 | 24 . 3 . 5 35 30 . 14 . . 73 63 . . . Received Heat Transfer 2290 | . . 18 . 6 342 972 . 220 12 . 72 414 . 234 . Siege Activations . | . . . . . . . . . . . . . . . . Robots Corrupted 13 | . . . . . 2 11 . . . . . . . . . Combat Hostiles 10 | . . . . . . 10 . . . . . . . . . Parts Fried 16 | . . . . . 7 9 . . . . . . . . . Impact Corruptions 32 | . . . . . 13 19 . . . . . . . . . Robots Melted . | . . . . . . . . . . . . . . . . Combat Hostiles . | . . . . . . . . . . . . . . . . Parts Melted . | . . . . . . . . . . . . . . . . Heat Transferred 125 | 125 . . . . . . . . . . . . . . . Parts Sabotaged . | . . . . . . . . . . . . . . . . Parts Stolen . | . . . . . . . . . . . . . . . . Parts Stripped . | . . . . . . . . . . . . . . . . Power Chain Reactions . | . . . . . . . . . . . . . . . . Alert | -11 -10 -10 -10 -9 -8 -8 -7 -7 -6 -6 -6 -6 -5 -5 -4 ------- Run | Yrd Mat Min Exi Min Mat Gar Fac DSF Fac Was Fac Gar Fac DSF Fac Peak Influence 1865 | 20 13 157 . 157 312 1865 997 745 400 160 218 454 238 180 86 Initial 978 | . 13 4 . . . 154 978 697 364 140 112 7 238 166 86 Average 385 | 7 13 83 . 121 187 816 990 712 391 153 110 261 238 130 86 Maximum Alert Level 5 | . . . . . 1 5 3 3 2 . 1 2 1 . . Low Security (%) 44 | 100 100 100 . 100 43 6 . . . 100 86 30 . 100 100 Level 1 26 | . . . . . 56 12 . . 82 . 13 60 100 . . Level 2 5 | . . . . . . 12 . 27 17 . . 8 . . . Level 3 17 | . . . . . . 45 100 72 . . . . . . . Level 4 4 | . . . . . . 17 . . . . . . . . . Level 5 1 | . . . . . . 5 . . . . . . . . . High Security . | . . . . . . . . . . . . . . . . Max Security . | . . . . . . . . . . . . . . . . Squads Dispatched 6 | . . . . . . . 1 1 . . 3 . . 1 . Investigation 2 | . . . . . . . 1 . . . 1 . . . . Extermination 1 | . . . . . . . . . . . 1 . . . . Reinforcement 3 | . . . . . . . . 1 . . 1 . . 1 . Assault . | . . . . . . . . . . . . . . . . Garrison . | . . . . . . . . . . . . . . . . Intercept . | . . . . . . . . . . . . . . . . Searches Triggered . | . . . . . . . . . . . . . . . . Construction Impeded . | . . . . . . . . . . . . . . . . Haulers Reinforced 1 | . . . . . . . . . . . 1 . . . . Active Scanning Responses . | . . . . . . . . . . . . . . . . Cargo Convoy Interrupts . | . . . . . . . . . . . . . . . . Stealth | -11 -10 -10 -10 -9 -8 -8 -7 -7 -6 -6 -6 -6 -5 -5 -4 --------- Run | Yrd Mat Min Exi Min Mat Gar Fac DSF Fac Was Fac Gar Fac DSF Fac Distress Signals 9 | . 1 . . . 4 4 . . . . . . . . . Communications Jammed . | . . . . . . . . . . . . . . . . Distress Signals . | . . . . . . . . . . . . . . . . Times Spotted 220 | . 3 8 . 9 31 52 . 66 1 6 11 20 . 12 1 Peak Tracking Total 31 | . 3 3 . 7 5 7 1 31 1 6 2 5 . 7 4 Tactical Retreats 15 | . . 1 . . 3 3 . 2 . . 1 2 . 3 . Traps | -11 -10 -10 -10 -9 -8 -8 -7 -7 -6 -6 -6 -6 -5 -5 -4 ------- Run | Yrd Mat Min Exi Min Mat Gar Fac DSF Fac Was Fac Gar Fac DSF Fac Traps Triggered 17 | . . . . . . 4 1 1 1 . 5 4 . 1 . Indirectly . | . . . . . . . . . . . . . . . . Trap Hack Attempts . | . . . . . . . . . . . . . . . . Triggered . | . . . . . . . . . . . . . . . . Disarmed . | . . . . . . . . . . . . . . . . Reprogrammed . | . . . . . . . . . . . . . . . . Reused 8 | . . . . . . . . . . . . . . 8 . Traps Extracted . | . . . . . . . . . . . . . . . . Installed 8 | . . . . . . . . . . . . . . 8 . Triggered 8 | . . . . . . . . . . . . . . 8 . Most Traps Carried 3 | . . . . . . . . . . . . . . 3 . Machines | -11 -10 -10 -10 -9 -8 -8 -7 -7 -6 -6 -6 -6 -5 -5 -4 ---------- Run | Yrd Mat Min Exi Min Mat Gar Fac DSF Fac Was Fac Gar Fac DSF Fac Machines Disabled 23 | . . . . . 3 11 . 2 . . 2 5 . . . Max in Single Turn 2 | . . . . . 1 2 . 1 . . 2 1 . . . Garrison Access 1 | . . . . . . . . . . . 1 . . . . Garrison Relay 6 | . . . . . . 4 . . . . . 2 . . . Phase Generator 1 | . . . . . . 1 . . . . . . . . . Machines Repaired . | . . . . . . . . . . . . . . . . Machines Dismantled . | . . . . . . . . . . . . . . . . Machines Sabotaged . | . . . . . . . . . . . . . . . . Overloaded Fab Kills . | . . . . . . . . . . . . . . . . Hacking | -11 -10 -10 -10 -9 -8 -8 -7 -7 -6 -6 -6 -6 -5 -5 -4 --------- Run | Yrd Mat Min Exi Min Mat Gar Fac DSF Fac Was Fac Gar Fac DSF Fac Machines Accessed 40 | . . . 3 . 11 3 3 . 2 . 12 5 1 . . Terminals 25 | . . . . . 7 3 1 . 1 . 7 5 1 . . Fabricators 3 | . . . . . . . . . 1 . 2 . . . . Repair Stations 4 | . . . . . 2 . 2 . . . . . . . . Recycling Units . | . . . . . . . . . . . . . . . . Scanalyzers 2 | . . . . . 1 . . . . . 1 . . . . Garrison Access 3 | . . . . . 1 . . . . . 2 . . . . Total Hacks 119 | . . . 18 . 36 5 6 . 6 . 36 11 1 . . Successful 73 | . . . 18 . 22 1 3 . 3 . 20 5 1 . . Failed 46 | . . . . . 14 4 3 . 3 . 16 6 . . . Catastrophic 4 | . . . . . 1 . . . 2 . . 1 . . . Database Lockouts . | . . . . . . . . . . . . . . . . Manual 45 | . . . 1 . 18 . . . 4 . 22 . . . . Terminals 75 | . . . . . 24 5 2 . 5 . 27 11 1 . . Fabricators 6 | . . . . . . . . . 1 . 5 . . . . Repair Stations 10 | . . . . . 6 . 4 . . . . . . . . Recycling Units . | . . . . . . . . . . . . . . . . Scanalyzers 5 | . . . . . 3 . . . . . 2 . . . . Garrison Access 5 | . . . . . 3 . . . . . 2 . . . . Terminal Hacks 36 | . . . 18 . 3 1 1 . 1 . 6 5 1 . . Record 17 | . . . 17 . . . . . . . . . . . . Part Schematic 3 | . . . . . . . . . 1 . 2 . . . . Prototype ID Bank 1 | . . . . . 1 . . . . . . . . . . Open Door 1 | . . . . . . . . . . . . 1 . . . Open DSF 2 | . . . . . . . 1 . . . . . 1 . . Emergency Access Points 1 | . . . . . . . . . . . . 1 . . . Terminal Index 2 | . . . . . . . . . . . 2 . . . . Unreport Threat 1 | . . . . . . . . . . . 1 . . . . Locate Traps 2 | . . . . . 1 . . . . . 1 . . . . Registered Prototypes 1 | . . . . . 1 . . . . . . . . . . Garrison Registry 2 | . . . . . . 1 . . . . . 1 . . . Patrol Navigation 1 | . . . . . . . . . . . . 1 . . . Security Stations 1 | . . . . . . . . . . . . 1 . . . Derelict Proto ID Bank 1 | . . . 1 . . . . . . . . . . . . Fabricator Hacks 3 | . . . . . . . . . 1 . 2 . . . . Build 3 | . . . . . . . . . 1 . 2 . . . . Repair Station Hacks 8 | . . . . . 6 . 2 . . . . . . . . Scan Component 4 | . . . . . 3 . 1 . . . . . . . . Repair 4 | . . . . . 3 . 1 . . . . . . . . Recycling Unit Hacks . | . . . . . . . . . . . . . . . . Scanalyzer 5 | . . . . . 3 . . . . . 2 . . . . Insert Component 3 | . . . . . 2 . . . . . 1 . . . . Analyze 2 | . . . . . 1 . . . . . 1 . . . . Garrison Access Hacks 3 | . . . . . 1 . . . . . 2 . . . . Unlock Access 2 | . . . . . 1 . . . . . 1 . . . . Seal Access 1 | . . . . . . . . . . . 1 . . . . Unauthorized Hacks 18 | . . . . . 9 . . . 1 . 8 . . . . Terminals 18 | . . . . . 9 . . . 1 . 8 . . . . Track 2 | . . . . . 1 . . . . . 1 . . . . Assimilate 1 | . . . . . 1 . . . . . . . . . . Botnet 14 | . . . . . 6 . . . 1 . 7 . . . . Operators 1 | . . . . . 1 . . . . . . . . . . Fabricators . | . . . . . . . . . . . . . . . . Repair Stations . | . . . . . . . . . . . . . . . . Recycling Units . | . . . . . . . . . . . . . . . . Scanalyzers . | . . . . . . . . . . . . . . . . Garrison Access . | . . . . . . . . . . . . . . . . Data Cores Recovered 1 | . . . . . 1 . . . . . . . . . . Used . | . . . . . . . . . . . . . . . . Hacking Detections 25 | . . . . . 10 3 2 . 1 . 5 4 . . . Full Trace Events . | . . . . . . . . . . . . . . . . Feedback Events . | . . . . . . . . . . . . . . . . Feedback Blocked . | . . . . . . . . . . . . . . . . Robot Schematics Acquired . | . . . . . . . . . . . . . . . . Robots Built 3 | . . . . . . . . . . . 3 . . . . Authchips . | . . . . . . . . . . . . . . . . Time 152 | . . . . . . . . . . . 152 . . . . Total Robot Build Rating 15 | . . . . . . . . . . . 15 . . . . Part Schematics Acquired 5 | . . . . . 1 . . . 1 . 3 . . . . Parts Built 1 | . . . . . . . . . . . 1 . . . . Authchips . | . . . . . . . . . . . . . . . . Time 186 | . . . . . . . . . 58 . 128 . . . . Total Part Build Rating 8 | . . . . . . . . . . . 8 . . . . Parts Repaired 4 | . . . . . 3 . 1 . . . . . . . . Time 152 | . . . . . 102 . 50 . . . . . . . . Parts Recycled . | . . . . . . . . . . . . . . . . Recycled Matter . | . . . . . . . . . . . . . . . . Retrieved Matter . | . . . . . . . . . . . . . . . . Retrieved Components . | . . . . . . . . . . . . . . . . Parts Scanalyzed 2 | . . . . . 1 . . . . . 1 . . . . Part Schematics Acquired 2 | . . . . . 1 . . . . . 1 . . . . Parts Damaged . | . . . . . . . . . . . . . . . . Bothacking | -11 -10 -10 -10 -9 -8 -8 -7 -7 -6 -6 -6 -6 -5 -5 -4 ------------ Run | Yrd Mat Min Exi Min Mat Gar Fac DSF Fac Was Fac Gar Fac DSF Fac Used RIF Installer 3 | . . . . . . 2 . . . . . 1 . . . Watcher Feeds 1 | . . . . . . . . . . . . 1 . . . Program Shield 1 | . . . . . . 1 . . . . . . . . . Robots Hacked 4 | . . . . . . . . . . . . 4 . . . Non-combat . | . . . . . . . . . . . . . . . . Combat 4 | . . . . . . . . . . . . 4 . . . Robot Hacks Applied 4 | . . . . . . . . . . . . 4 . . . streamctrl_high 1 | . . . . . . . . . . . . 1 . . . formatsys_high 3 | . . . . . . . . . . . . 3 . . . Relay Couplers Released 24 | . . . . . . 16 . . . . . 8 . . . Machine Destruction 24 | . . . . . . 16 . . . . . 8 . . . Attached 8 | . . . . . . . . . 1 . . 5 . 2 . Fabnet Peak Effective % . | . . . . . . . . . . . . . . . . Robots Rewired 3 | . . . . . . 3 . . . . . . . . . Allies Hacked . | . . . . . . . . . . . . . . . . Hacks Repelled . | . . . . . . . . . . . . . . . . Allies | -11 -10 -10 -10 -9 -8 -8 -7 -7 -6 -6 -6 -6 -5 -5 -4 -------- Run | Yrd Mat Min Exi Min Mat Gar Fac DSF Fac Was Fac Gar Fac DSF Fac Total Allies 16 | . . 2 . . . 3 . . . . 3 8 . . . Largest Group 3 | . . 2 . . . 3 . . . . 3 2 2 2 . Highest-Rated Group 142 | . . 38 . . . 72 . . . . 87 142 67 67 . Highest-Rated Ally 80 | . . 31 . . . 24 . . . . 29 80 38 38 . Total Orders 2 | . . . . . . 2 . . . . . . . . . ROAM 1 | . . . . . . 1 . . . . . . . . . FOLLOW 1 | . . . . . . 1 . . . . . . . . . Ally Attacks 63 | . . 5 . . . 12 . . . . 8 34 . 4 . Total Damage 1637 | . . 85 . . . 314 . . . . 96 913 . 229 . Kills 12 | . . 2 . . . 2 . . . . . 7 . 1 . Allies Corrupted . | . . . . . . . . . . . . . . . . Allies Melted . | . . . . . . . . . . . . . . . . Intel | -11 -10 -10 -10 -9 -8 -8 -7 -7 -6 -6 -6 -6 -5 -5 -4 ------- Run | Yrd Mat Min Exi Min Mat Gar Fac DSF Fac Was Fac Gar Fac DSF Fac Robot Analysis Total . | . . . . . . . . . . . . . . . . Derelict Logs Recovered 2 | . . . . 2 . . . . . . . . . . . Drone Launches . | . . . . . . . . . . . . . . . . Drone Recoveries . | . . . . . . . . . . . . . . . . Exploration | -11 -10 -10 -10 -9 -8 -8 -7 -7 -6 -6 -6 -6 -5 -5 -4 ------------- Run | Yrd Mat Min Exi Min Mat Gar Fac DSF Fac Was Fac Gar Fac DSF Fac Turns Passed 9285 | 76 66 697 406 471 1905 2455 245 293 91 63 961 1114 43 148 251 Spaces Moved 5838 | 45 73 412 459 422 967 955 135 166 88 100 930 876 34 133 43 Core 471 | 13 . . . 2 . 26 . 58 88 100 7 35 . 99 43 Treads 733 | . . . . . . 525 135 73 . . . . . . . Legs 617 | . . . . . . 106 . . . . 227 216 34 34 . Wheels 2887 | 32 73 412 459 420 967 298 . 35 . . 191 . . . . Hover 1130 | . . . . . . . . . . . 505 625 . . . Flight . | . . . . . . . . . . . . . . . . Fastest Speed 50 | 50 80 80 80 95 83 101 160 50 100 50 50 56 120 50 50 Average Speed 107 | 71 80 80 86 97 98 199 160 115 100 60 83 81 120 71 50 Slowest Speed 600 | 80 80 80 95 450 115 600 160 240 100 100 120 150 120 200 50 Overloaded Moves . | . . . . . . . . . . . . . . . . Propulsion Burnouts . | . . . . . . . . . . . . . . . . Robots Hopped . | . . . . . . . . . . . . . . . . Cave-ins Triggered 1 | . . . . . . . . . . . . 1 . . . Exploration Rate (%) 47 | 4 30 59 64 82 60 81 5 97 3 83 20 82 2 92 3 Regions Visited 15 Branch Regions 3 Pre-discovered Areas 1 | . . . . 1 . . . . . . . . . . . Known Exits Taken 4 | . . . . . 1 . 1 . . . 1 . 1 . . Unknown Exits Taken 5 | 1 1 1 1 1 . . . . . . . . . . . Scrap Searched 2 | . . . . 2 . . . . . . . . . . . Spaces Dug 10 | . . . . . 5 2 . . . . . 3 . . . Terrain Destroyed 307 | . . 29 . 37 14 193 . 3 . . 28 3 . . . Melee 10 | . . . . . 5 2 . . . . . 3 . . . Projectile 13 | . . . . . . 3 . 3 . . 7 . . . . AOE 284 | . . 29 . 37 9 188 . . . . 21 . . . . Terrain Rammed . | . . . . . . . . . . . . . . . . Walls Destroyed . | . . . . . . . . . . . . . . . . Machines Disabled . | . . . . . . . . . . . . . . . . Actions | -11 -10 -10 -10 -9 -8 -8 -7 -7 -6 -6 -6 -6 -5 -5 -4 --------- Run | Yrd Mat Min Exi Min Mat Gar Fac DSF Fac Was Fac Gar Fac DSF Fac Total 8300 | 75 80 776 473 460 1783 1278 159 240 92 102 1084 1198 36 191 273 Wait 1599 | . . 362 . 5 632 86 14 35 1 3 34 199 3 . 225 Move 5822 | 44 72 411 458 421 966 953 134 165 88 99 929 874 33 132 43 Hop . | . . . . . . . . . . . . . . . . Pick Up 207 | 13 6 . 7 8 45 31 4 7 1 . 39 23 . 22 1 Fast Attach . | . . . . . . . . . . . . . . . . Attach 109 | 7 . . . 5 11 18 3 5 2 . 28 19 . 9 2 Detach 4 | . . . . . . . . . . . 1 1 . 1 1 Swap 47 | . 1 1 2 . 20 13 . 4 . . 3 2 . 1 . Drop 110 | 3 1 . 6 4 29 16 1 10 . . 19 4 . 16 1 Fire 198 | 8 . 2 . 17 61 54 . 12 . . 7 36 . 1 . Melee 136 | . . . . . 18 73 3 2 . . 10 30 . . . Ram 12 | . . . . . 1 . . . . . 11 . . . . Kick 3 | . . . . . . . . . . . 3 . . . . Crush . | . . . . . . . . . . . . . . . . Escape Stasis 31 | . . . . . . 21 . . . . . 10 . . . Rewire 14 | . . . . . . 13 . . . . . . . 1 . Trap 8 | . . . . . . . . . . . . . . 8 . Miscellaneous . | . . . . . . . . . . . . . . . . Route ------- -11/Scrapyard -10/Materials -10/Mines (discovered 3 exits: [*Mat x2] / *Exi) -10/Exiles -9/Mines -8/Materials (discovered 2 exits: *Fac / Gar) -8/Garrison (discovered 3 exits: *Fac x3) -7/Factory -7/DSF -6/Factory -6/Waste -6/Factory (discovered 3 exits: *Fac / *Low / Gar) -6/Garrison (discovered 3 exits: *Fac x3) -5/Factory -5/DSF -4/Factory History --------- Turn | Location | Event 9 | -11/Scrapyard | Discovered new exit (range 15) 77 | -11/Scrapyard | Entered Materials 131 | -10/Materials | Discovered new exit (range 16) 143 | -10/Materials | Entered Mines 172 | -10/Mines | Discovered new exit (range 7) 291 | -10/Mines | Discovered new exit (range 7) 295 | -10/Mines | Assembled infested the area 300 | -10/Mines | Assisted by a Guerilla fighting off Assembled 314 | -10/Mines | Build established: Mutant 837 | -10/Mines | Deemed a non-threat by the Exiles lab entrance 837 | -10/Mines | Discovered new exit (range 5) 840 | -10/Mines | Entered Exiles 862 | -10/Exiles | Met 8R-AWN 892 | -10/Exiles | Met EX-HEX 916 | -10/Exiles | Met EX-BIN 930 | -10/Exiles | Aligned with FarCom system 931 | -10/Exiles | Given EX-Vault access code 984 | -10/Exiles | Opened EX-Vault 1003 | -10/Exiles | Warned to stay clear of 0b10 Research branches 1030 | -10/Exiles | Met EX-DEC 1155 | -10/Exiles | Found YOLO Cannon 1234 | -10/Exiles | Discovered new exit (range 14) 1246 | -10/Exiles | Left Exiles lab with YOLO Cannon 1246 | -10/Exiles | Entered Mines 1300 | -9/Mines | Destroyed 7 combat bots 1305 | -9/Mines | Lost 4 parts (1p2n1w) 1349 | -9/Mines | Learned Materials interactive machine intel 1410 | -9/Mines | Received a Rocket Launcher from a helpful Derelict 1613 | -9/Mines | Build established: Scavenger-Skirmisher 1615 | -9/Mines | Learned location of Zion (-7) 1711 | -9/Mines | Discovered new exit (range 7) 1717 | -9/Mines | Entered Materials 1717 | -8/Materials | Evolved 4 slots: Propulsion x1, Utility x2, Weapon x1 1718 | -8/Materials | Loaded intel: 19 interactive machine locations 2065 | -8/Materials | Repaired Arm. Wheel 2104 | -8/Materials | Repaired Imp. Terrain Scanner 2484 | -8/Materials | Discovered new exit (range 11) 3039 | -8/Materials | Repaired Arm. Wheel 3374 | -8/Materials | Build established: Scavenger-Assassin 3616 | -8/Materials | Identified exit to Garrison 3622 | -8/Materials | Entered Garrison 3728 | -8/Garrison | Spotted B-75 Beast 3765 | -8/Garrison | Destroyed B-75 Beast 3774 | -8/Garrison | Core integrity fell below 50% 3789 | -8/Garrison | Lost 3 parts (1p1n1u) 3938 | -8/Garrison | Triggered checkpoint 4042 | -8/Garrison | Build established: Gladiator 4088 | -8/Garrison | Triggered checkpoint 4276 | -8/Garrison | Triggered checkpoint 4326 | -8/Garrison | Triggered checkpoint 4358 | -8/Garrison | Discovered new exit (range 8) 4453 | -8/Garrison | Spotted B-75 Beast 4492 | -8/Garrison | Destroyed B-75 Beast 4509 | -8/Garrison | Lost 5 parts (3n2u) 4522 | -8/Garrison | Core integrity fell below 20% 4716 | -8/Garrison | Triggered checkpoint 4809 | -8/Garrison | Build established: Skirmisher 4872 | -8/Garrison | Triggered checkpoint 4882 | -8/Garrison | Discovered new exit (range 64) 4882 | -8/Garrison | Discovered new exit (range 26) 4882 | -8/Garrison | Discovered new exit (range 43) 5066 | -8/Garrison | Installed Relay Interface Framework 5285 | -8/Garrison | Build established: Scavenger-Skirmisher 5382 | -8/Garrison | Triggered checkpoint 5498 | -8/Garrison | Triggered checkpoint 5573 | -8/Garrison | Expanded RIF knowledge: Program Shield 5706 | -8/Garrison | Phase Generator disabled 6020 | -8/Garrison | Triggered checkpoint 6030 | -8/Garrison | Garrison Relay disabled 6077 | -8/Garrison | Entered Factory 6077 | -7/Factory | Evolved 2 slots: Utility x2 6259 | -7/Factory | Identified exit to DSF 6293 | -7/Factory | Repaired Imp. Core Shielding 6322 | -7/Factory | Entered DSF 6332 | -7/DSF | Assembled infested the area 6363 | -7/DSF | Additional patrols routed to DSF 6571 | -7/DSF | Discovered new exit (range 11) 6582 | -7/DSF | System corruption reached 10% 6615 | -7/DSF | Lost 5 parts (2n3u) 6615 | -7/DSF | Entered Factory 6615 | -6/Factory | Evolved 2 slots: Utility x2 6682 | -6/Factory | Spotted B-75 Beast 6706 | -6/Factory | Sucked down chute 6706 | -6/Factory | Entered Waste 6715 | -6/Waste | Spotted C-40 Crusher 6721 | -6/Waste | EMP discharged 6722 | -6/Waste | Spotted C-40 Crusher 6726 | -6/Waste | Crushed by Compactor (1 part destroyed, 1 dropped) 6731 | -6/Waste | Spotted C-40 Crusher 6740 | -6/Waste | Spotted C-40 Crusher 6748 | -6/Waste | Spotted C-40 Crusher 6748 | -6/Waste | Spotted C-40 Crusher 6764 | -6/Waste | Discovered new exit (range 10) 6769 | -6/Waste | Entered Factory 7108 | -6/Factory | Discovered new exit (range 15) 7166 | -6/Factory | Identified exit to Lower Caves 7182 | -6/Factory | System corruption reached 10% 7270 | -6/Factory | Build established: Hacker-Skirmisher 7382 | -6/Factory | Discovered new exit (range 15) 7392 | -6/Factory | Identified exit to Factory 7590 | -6/Factory | Fabricated G-50 Soldier? 7677 | -6/Factory | Fabricated Antigrav Array (x1) 7720 | -6/Factory | Identified exit to Garrison 7730 | -6/Factory | Entered Garrison 7747 | -6/Garrison | Found embedded Infiltrators 7843 | -6/Garrison | Build established: Hacker-Gladiator 7870 | -6/Garrison | Triggered checkpoint 7876 | -6/Garrison | Triggered checkpoint 8053 | -6/Garrison | Lost 3 parts (1p1n1u) 8090 | -6/Garrison | Core integrity fell below 50% 8114 | -6/Garrison | Lost 3 parts (1u2w) 8120 | -6/Garrison | Triggered checkpoint 8162 | -6/Garrison | Garrison Relay disabled 8217 | -6/Garrison | Discovered exit to Factory (range 13) 8237 | -6/Garrison | Crushed by falling debris 8249 | -6/Garrison | Expanded RIF knowledge: Watcher Feeds 8284 | -6/Garrison | Discovered exit to Factory (range 61) 8284 | -6/Garrison | Discovered exit to Factory (range 32) 8284 | -6/Garrison | Discovered exit to Factory (range 34) 8306 | -6/Garrison | Learned Factory security intel 8376 | -6/Garrison | Build established: Hacker-Mutant 8418 | -6/Garrison | Triggered checkpoint 8429 | -6/Garrison | Triggered checkpoint 8448 | -6/Garrison | Core integrity fell below 20% 8478 | -6/Garrison | Lost 4 parts (2n2w) 8494 | -6/Garrison | System corruption reached 30% 8682 | -6/Garrison | Triggered checkpoint 8736 | -6/Garrison | Lost 3 allies 8749 | -6/Garrison | Garrison Relay disabled 8811 | -6/Garrison | Rescued a captive Derelict 8812 | -6/Garrison | Rescued a captive Derelict 8844 | -6/Garrison | Entered Factory 8844 | -5/Factory | Accompanied by 2 allies 8844 | -5/Factory | Evolved 2 slots: Propulsion x1, Utility x1 8884 | -5/Factory | Identified exit to DSF 8887 | -5/Factory | Entered DSF 8887 | -5/DSF | Accompanied by 2 allies 8905 | -5/DSF | Additional patrols routed to DSF 8990 | -5/DSF | Lost 11 parts (1p3n5u2w) 9023 | -5/DSF | Discovered new exit (range 16) 9035 | -5/DSF | Entered Factory 9035 | -4/Factory | Evolved 2 slots: Utility x1, Weapon x1 9197 | -4/Factory | Build established: Wizard-Mutant 9286 | -4/Factory | Self-destructed Last Messages --------------- 09014_ Dropped Micro-nuke Launcher. 09015_ Acquired Hacking Suite. 09017_ Discarded Imp. Melee Analysis Suite. 09019_ Acquired Hacking Suite. 09023_ EXIT=FOUND 09023_ C-30 ARC bursts open, deploying its payload. 09023_ S-27 Virus unfolds itself. 09025_ Dropped Micro-nuke Launcher. 09026_ Acquired Hyp. Coil Gun. 09030_ Dropped Hyp. Coil Gun. PARAMETERS=UTILITY+1,WEAPON+1 LOCATION=UNKNOWN GOAL=ESCAPE 09035_ Receiving FarCom transmissions... 09040_ Acquired Unknown Storage. 09041_ Discarded Imp. System Shield. 09042_ Identified Com. Battery. 09043_ Dropped Com. Battery. 09266_ K-01 Serf collects debris. Map ----- +----------------------------------------------------+ | ??????????# #????????????????? | | ?????????########### #????????????????? | | ?????????# # ###+#####????????? | | ?????????# # ?????? | | ?????????# ! + ?????? | | ?????????# # "" "" "" "??????? | | ?????????# * # "" "" ""?????????? | | ?????????# ?# """ """ ???????????? | | ?????????# !?# """ """ ???????????? | | ?????????# ??# """ """ ""?????????? | | ?????????########??# ?????? | | ???????????????????# "" "" "" ????????? | | ???????????????????# "" "" "??????????? | | ??????############## """ """ ???????????? | | ??????# # """ """????????????? | | ??????# # """ """ """ ???????? | | ??????# # ??????? | | ??????# #s g ??????? | | ??????# k#s ??????? | | ??????# + ] ??????? | | ??????# s#s ??????? | | ??????# # ???????? | | ??????# ####+########## ???????? | | ??????# #??????????????????????? | | ??????# #??????????????????????? | | ??????# @#??????????????????????? | | ??????##############??????????????????????? | | ??????????????????????????????????????????? | | ??????????????????????????????????????????? | | ??????????????????????????????????????????? | | ??????????????????????????????????????????? | | ??????????????????????????????????????????? | | ??????????????????????????????????????????? | | ??????????????????????????????????????????? | | ??????????????????????????????????????????? | | ??????????????????????????????????????????? | | ??????????????????????????????????????????? | | ??????????????????????????????????????????? | | ??????????????????????????????????????????? | | ??????????????????????????????????????????? | | ??????????????????????????????????????????? | | ??????????????????????????????????????????? | | ??????????????????????????????????????????? | | ??????????????????????????????????????????? | | ??????????????????????????????????????????? | | ??????????????????????????????????????????? | | ??????????????????????????????????????????? | | ??????????????????????????????????????????? | | ??????????????????????????????????????????? | | ??????????????????????????????????????????? | +----------------------------------------------------+ Best States ------------- Heat Dissipation 43 Energy Generation 18 Energy Capacity 160 Matter Stores 300 Matter Capacity 300 Sight Range 16 Terrain Scan Range 16 Terrain Scan Density 85 Armor Coverage 225 Resistance: KI 20 Core Shielding 30 Phase Shifting 10 Evasion (%) 63 Melee Accuracy 22 Core Analysis 6 Recoil Reduction 3 Salvage Targeting 3 Offensive Hacking 24 Defensive Hacking 60 Relay Coupler Types 4 Relay Coupler Value 108 Authchip Count 1 Item Schematics ----------------- Hacking Suite | -8/Materials | Scanalyzed Adv. Particle Charger | -6/Factory | Hacked Imp. System Shield | -6/Factory | Scanalyzed Lrg. Storage Unit | -6/Factory | Hacked Adv. Melee Analysis Suite | -6/Factory | Hacked Robot Schematics ------------------ None Fabricated ------------ G-50 Soldier | x3 | -6/Factory | Preloaded Antigrav Array | x1 | -6/Factory | Preloaded Alien Tech Used ----------------- None Achievements -------------- None Challenges ------------ None Game ------ Seed LightningBehemothChainsaw Manual? 0 Play Time 01:29:51 Cumulative 326.4 hours Start 2024.09.02 @ 08:10:14 End 2024.09.07 @ 14:40:49 Sessions 6 Manual Loads 0 Difficulty Rogue Special Mode None Game No. 375 Rogue 375 Adventurer 0 Explorer 0 Win Type - Total 6 Types 3/1/1/1/0/0/0/0/0 Lore% 39 Gallery% 71 Achievement% 67 Wizard Run 0 Options --------- Layout 1 ASCII 0 Keyboard 0 Movement Numpad Keybinds 0 Fullscreen 1 Font 32/SmallcapsGlow Map View 50x35 Zoom Use 0% Tactical HUD 1 Map Filters NONE Filters NONE Steam 1 RUN: be542f16-d89e-41b4-a69a-5c9c180f6449